[Event "CZE-ch FIDE Open 2020"]
[Site "Kouty nad Desnou"]
[Date "2020.03.07"]
[Round "1.2"]
[White "Sikorova, Olga"]
[Black "Novotny, David"]
[Result "1-0"]
[ECO "A29"]
[WhiteElo "2199"]
[BlackElo "1910"]
[Annotator "ChessBase"]
[PlyCount "81"]
[EventDate "2020.03.07"]
[EventCountry "CZE"]
[SourceTitle "playchess.com"]
[Source "ChessBase"]
[SourceQuality "1"]
[TimeControl "5400+30"]

1. c4 {[%emt 0:00:00]} e5 {[%emt 0:00:00]} 2. g3 {[%emt 0:00:00]} Nf6 {[%emt 0:00:00]} 3. Bg2 {[%emt 0:00:00]} d5 {[%emt 0:00:24]} 4. cxd5 {[%emt 0:00:04]} Nxd5 {[%emt 0:00:07]} 5. Nc3 {[%emt 0:00:08]} Be6 {[%emt 0:01:28]} 6. Nf3 {[%emt 0:00:18]} Nc6 {[%emt 0:01:02]} 7. O-O {[%emt 0:00:43]} Nb6 {[%emt 0:04:06]} 8. b3 {[%emt 0:01:52]} f6 {[%emt 0:05:24]} 9. Bb2 {[%emt 0:00:42]} Qd7 {[%emt 0:00:29]} 10. Rc1 {[%emt 0:09:31]} O-O-O {[%emt 0:10:38]} 11. Ne4 {[%emt 0:20:57]} h5 {[%emt 0:14:06]} 12. h4 {[%emt 0:05:46]} Bd5 {[%emt 0:07:58]} 13. d3 {[%emt 0:02:57]} Bxe4 {[%emt 0:04:10]} 14. dxe4 {[%emt 0:00:06]} Qe6 {[%emt 0:02:48]} 15. Qc2 {[%emt 0:00:46]} Bd6 {[%emt 0:06:54]} 16. Rfd1 {[%emt 0:03:39]} Kb8 {[%emt 0:02:20]} 17. a3 {[%emt 0:02:08]} Rdg8 {[%emt 0:02:55]} 18. b4 {[%emt 0:04:50]} a6 {[%emt 0:04:24]} 19. Rd3 {[%emt 0:01:52]} g5 {[%emt 0:00:35]} 20. Rc3 {[%emt 0:10:57]} Nd4 {[%emt 0:04:42]} 21. Nxd4 {[%emt 0:08:03]} exd4 {[%emt 0:00:08]} 22. Rxc7 {[%emt 0:04:40]} Bxc7 {[%emt 0:01:17]} 23. Qxc7+ {[%emt 0:00:06]} Ka8 {[%emt 0:02:14]} 24. e5 {[%emt 0:00:30]} Rb8 {[%emt 0:03:57]} 25. Rc6 {[%emt 0:02:48]} Nd5 {[%emt 0:02:52]} 26. Rxe6 {[%emt 0:06:44]} Nxc7 {[%emt 0:00:11]} 27. Rxf6 {[%emt 0:00:05]} gxh4 {[%emt 0:02:07]} 28. Bxd4 {[%emt 0:05:30]} hxg3 {[%emt 0:00:41]} 29. fxg3 {[%emt 0:00:31]} Rhg8 {[%emt 0:01:35]} 30. Kh2 {[%emt 0:00:37]} Rg4 {[%emt 0:01:27]} 31. Bf2 {[%emt 0:01:37]} Rg5 {[%emt 0:00:35]} 32. Be3 {[%emt 0:02:23]} Rxe5 {[%emt 0:10:15]} 33. Bf4 {[%emt 0:00:21]} Re6 {[%emt 0:00:29]} 34. Rxe6 {[%emt 0:05:02]} Nxe6 {[%emt 0:00:06]} 35. Bxb8 {[%emt 0:00:02]} Kxb8 {[%emt 0:00:07]} 36. Kh3 {[%emt 0:00:51]} Nd4 {[%emt 0:03:14]} 37. Kh4 {[%emt 0:00:40]} Nxe2 {[%emt 0:00:18]} 38. Bf1 {[%emt 0:00:23]} Nd4 {[%emt 0:02:21]} 39. Bd3 {[%emt 0:00:05]} Kc7 {[%emt 0:00:29]} 40. Kxh5 {[%emt 0:00:04]} Kd6 {[%emt 0:00:27]} 41. g4 {[%emt 0:00:35]} 1-0

[Event "CZE-ch FIDE Open 2020"]
[Site "Kouty nad Desnou"]
[Date "2020.03.07"]
[Round "1.3"]
[White "Kucera, Tomas"]
[Black "Sochorova, Petra"]
[Result "1-0"]
[ECO "A89"]
[WhiteElo "1985"]
[BlackElo "2119"]
[Annotator "ChessBase"]
[PlyCount "55"]
[EventDate "2020.03.07"]
[EventCountry "CZE"]
[SourceTitle "playchess.com"]
[Source "ChessBase"]
[SourceQuality "1"]
[TimeControl "5400+30"]

1. c4 {[%emt 0:00:00]} f5 {[%emt 0:00:00]} 2. Nc3 {[%emt 0:01:28]} Nf6 {[%emt 0:00:06]} 3. g3 {[%emt 0:01:02]} g6 {[%emt 0:00:42]} 4. Bg2 {[%emt 0:00:19]} Bg7 {[%emt 0:00:11]} 5. Nf3 {[%emt 0:00:56]} O-O {[%emt 0:00:22]} 6. O-O {[%emt 0:00:38]} Nc6 {[%emt 0:04:41]} 7. d4 {[%emt 0:04:47]} d6 {[%emt 0:01:53]} 8. b3 {[%emt 0:11:47]} Ne4 {[%emt 0:11:28]} 9. Bb2 {[%emt 0:09:16]} Nxc3 {[%emt 0:11:55]} 10. Bxc3 {[%emt 0:00:11]} f4 {[%emt 0:00:53]} 11. Qd2 {[%emt 0:11:44]} fxg3 {[%emt 0:04:47]} 12. hxg3 {[%emt 0:00:24]} Bg4 {[%emt 0:14:52]} 13. d5 {[%emt 0:12:48]} Bxf3 {[%emt 0:06:03]} 14. exf3 {[%emt 0:00:28]} Ne5 {[%emt 0:10:37]} 15. f4 {[%emt 0:02:17]} Nd7 {[%emt 0:04:39]} 16. Bxg7 {[%emt 0:00:38]} Kxg7 {[%emt 0:00:05]} 17. Rfe1 {[%emt 0:01:11]} Rf7 {[%emt 0:03:12]} 18. Re2 {[%emt 0:02:50]} a5 {[%emt 0:04:04]} 19. Rae1 {[%emt 0:02:49]} b6 {[%emt 0:04:04]} 20. Bh3 {[%emt 0:02:46]} Nc5 {[%emt 0:07:18]} 21. a3 {[%emt 0:01:35]} Qf8 {[%emt 0:04:22]} 22. b4 {[%emt 0:00:58]} axb4 {[%emt 0:00:25]} 23. axb4 {[%emt 0:00:12]} Nb7 {[%emt 0:00:06]} 24. Qd4+ {[%emt 0:01:54]} Kh6 {[%emt 0:00:13]} 25. f5 {[%emt 0:03:25]} Ra3 {[%emt 0:03:49]} 26. Rxe7 {[%emt 0:02:04]} Ra1 {[%emt 0:01:34]} 27. Qh4+ {[%emt 0:00:41]} Kg7 {[%emt 0:00:03]} 28. Rxf7+ {[%emt 0:00:10]} 1-0

[Event "CZE-ch FIDE Open 2020"]
[Site "Kouty nad Desnou"]
[Date "2020.03.07"]
[Round "1.4"]
[White "Bares, Jachym"]
[Black "Kosut, Tomas"]
[Result "1-0"]
[ECO "B77"]
[WhiteElo "2119"]
[BlackElo "1878"]
[Annotator "ChessBase"]
[PlyCount "97"]
[EventDate "2020.03.07"]
[EventCountry "CZE"]
[SourceTitle "playchess.com"]
[Source "ChessBase"]
[SourceQuality "1"]
[TimeControl "5400+30"]

1. e4 {[%emt 0:00:00]} c5 {[%emt 0:00:00]} 2. Nf3 {[%emt 0:00:00]} d6 {[%emt 0:00:31]} 3. d4 {[%emt 0:00:04]} cxd4 {[%emt 0:00:06]} 4. Nxd4 {[%emt 0:00:04]} Nf6 {[%emt 0:00:25]} 5. Nc3 {[%emt 0:00:10]} g6 {[%emt 0:00:18]} 6. f3 {[%emt 0:02:27]} Bg7 {[%emt 0:00:38]} 7. Be3 {[%emt 0:00:13]} Nc6 {[%emt 0:01:03]} 8. Qd2 {[%emt 0:00:44]} O-O {[%emt 0:01:24]} 9. Bc4 {[%emt 0:00:12]} Bd7 {[%emt 0:01:59]} 10. Bb3 {[%emt 0:00:06]} Nxd4 {[%emt 0:02:53]} 11. Bxd4 {[%emt 0:00:14]} b5 {[%emt 0:00:15]} 12. O-O-O {[%emt 0:04:31]} a5 {[%emt 0:01:29]} 13. Nd5 {[%emt 0:02:36]} a4 {[%emt 0:17:28]} 14. Nxf6+ {[%emt 0:06:03]} Bxf6 {[%emt 0:01:04]} 15. Bd5 {[%emt 0:00:19]} Rb8 {[%emt 0:05:43]} 16. Bxf6 {[%emt 0:01:59]} exf6 {[%emt 0:00:07]} 17. h4 {[%emt 0:01:09]} b4 {[%emt 0:04:23]} 18. h5 {[%emt 0:03:07]} g5 {[%emt 0:05:09]} 19. Kb1 {[%emt 0:02:53]} h6 {[%emt 0:02:35]} 20. f4 {[%emt 0:02:27]} Qe7 {[%emt 0:03:51]} 21. Rhf1 {[%emt 0:01:57]} b3 {[%emt 0:06:10]} 22. cxb3 {[%emt 0:01:33]} axb3 {[%emt 0:00:38]} 23. Qd4 {[%emt 0:17:40]} bxa2+ {[%emt 0:01:52]} 24. Ka1 {[%emt 0:03:01]} Rbd8 {[%emt 0:07:06]} 25. fxg5 {[%emt 0:01:29]} fxg5 {[%emt 0:03:43]} 26. Rf6 {[%emt 0:01:11]} Qe5 {[%emt 0:03:11]} 27. Rxh6 {[%emt 0:05:05]} Bg4 {[%emt 0:12:49]} 28. Qxe5 {[%emt 0:05:32]} dxe5 {[%emt 0:00:11]} 29. Rf1 {[%emt 0:09:00]} Kg7 {[%emt 0:00:51]} 30. Rb6 {[%emt 0:01:15]} Bxh5 {[%emt 0:00:55]} 31. Kxa2 {[%emt 0:02:02]} f6 {[%emt 0:04:18]} 32. b4 {[%emt 0:01:13]} Bf7 {[%emt 0:01:11]} 33. Rb7 {[%emt 0:08:06]} Kg6 {[%emt 0:00:40]} 34. Bxf7+ {[%emt 0:00:42]} Rxf7 {[%emt 0:00:07]} 35. Rxf7 {[%emt 0:00:04]} Kxf7 {[%emt 0:00:05]} 36. Kb3 {[%emt 0:00:05]} Ke6 {[%emt 0:03:18]} 37. b5 {[%emt 0:04:05]} Rd4 {[%emt 0:04:50]} 38. Rc1 {[%emt 0:00:25]} Kd7 {[%emt 0:02:06]} 39. Rc4 {[%emt 0:01:40]} Rd2 {[%emt 0:02:47]} 40. g4 {[%emt 0:01:46]} Rd1 {[%emt 0:00:25]} 41. Kc2 {[%emt 0:10:29]} Rd6 {[%emt 0:01:11]} 42. Kc3 {[%emt 0:00:01]} Rd1 {[%emt 0:00:15]} 43. b6 {[%emt 0:02:51]} Rd6 {[%emt 0:00:23]} 44. b7 {[%emt 0:00:58]} Rb6 {[%emt 0:00:04]} 45. Rb4 {[%emt 0:00:07]} Rxb4 {[%emt 0:00:07]} 46. Kxb4 {[%emt 0:00:02]} Kc7 {[%emt 0:00:24]} 47. Kc5 {[%emt 0:00:32]} Kxb7 {[%emt 0:00:12]} 48. Kd5 {[%emt 0:00:03]} f5 {[%emt 0:01:54]} 49. exf5 {[%emt 0:00:14]} 1-0

[Event "CZE-ch FIDE Open 2020"]
[Site "Kouty nad Desnou"]
[Date "2020.03.07"]
[Round "1.5"]
[White "Lukas, Frantisek"]
[Black "Brazdil, Roman"]
[Result "1/2-1/2"]
[ECO "D35"]
[WhiteElo "1852"]
[BlackElo "2116"]
[Annotator "ChessBase"]
[PlyCount "99"]
[EventDate "2020.03.07"]
[EventCountry "CZE"]
[SourceTitle "playchess.com"]
[Source "ChessBase"]
[SourceQuality "1"]
[TimeControl "5400+30"]

1. d4 {[%emt 0:00:00]} Nf6 {[%emt 0:00:00]} 2. c4 {[%emt 0:00:00]} e6 {[%emt 0:00:00]} 3. Nf3 {[%emt 0:00:06]} d5 {[%emt 0:00:00]} 4. cxd5 {[%emt 0:00:25]} exd5 {[%emt 0:00:00]} 5. Bg5 {[%emt 0:01:03]} Be7 {[%emt 0:00:00]} 6. Nc3 {[%emt 0:02:15]} O-O {[%emt 0:00:10]} 7. e3 {[%emt 0:00:36]} c6 {[%emt 0:01:05]} 8. Bd3 {[%emt 0:03:13]} Bg4 {[%emt 0:04:13]} 9. Qc2 {[%emt 0:14:50]} h6 {[%emt 0:02:16]} 10. Bh4 {[%emt 0:02:21]} Nbd7 {[%emt 0:00:49]} 11. h3 {[%emt 0:02:08]} Bxf3 {[%emt 0:00:12]} 12. gxf3 {[%emt 0:00:38]} c5 {[%emt 0:00:50]} 13. dxc5 {[%emt 0:09:54]} Nxc5 {[%emt 0:01:13]} 14. O-O-O {[%emt 0:06:07]} Nxd3+ {[%emt 0:03:38]} 15. Qxd3 {[%emt 0:03:23]} Rc8 {[%emt 0:00:24]} 16. Kb1 {[%emt 0:03:21]} Qb6 {[%emt 0:01:04]} 17. Qb5 {[%emt 0:13:41]} Qc7 {[%emt 0:08:48]} 18. Bg3 {[%emt 0:07:02]} Qc6 {[%emt 0:01:31]} 19. Qxc6 {[%emt 0:00:38]} bxc6 {[%emt 0:00:05]} 20. Rc1 {[%emt 0:08:20]} Rfd8 {[%emt 0:06:06]} 21. Rhd1 {[%emt 0:00:52]} Nh7 {[%emt 0:03:46]} 22. h4 {[%emt 0:04:37]} Nf8 {[%emt 0:01:08]} 23. Ne2 {[%emt 0:02:34]} Bf6 {[%emt 0:03:49]} 24. Nd4 {[%emt 0:01:45]} Bxd4 {[%emt 0:01:01]} 25. Rxd4 {[%emt 0:00:52]} Ne6 {[%emt 0:00:42]} 26. Ra4 {[%emt 0:00:43]} Rd7 {[%emt 0:01:54]} 27. Ra6 {[%emt 0:03:18]} c5 {[%emt 0:01:54]} 28. Rd6 {[%emt 0:00:27]} Rxd6 {[%emt 0:01:01]} 29. Bxd6 {[%emt 0:00:04]} Rc6 {[%emt 0:00:28]} 30. Bb8 {[%emt 0:01:17]} a6 {[%emt 0:01:10]} 31. Ba7 {[%emt 0:02:22]} f5 {[%emt 0:05:39]} 32. Rd1 {[%emt 0:04:09]} Rd6 {[%emt 0:02:21]} 33. Rc1 {[%emt 0:00:43]} c4 {[%emt 0:00:36]} 34. Rd1 {[%emt 0:00:22]} Rd7 {[%emt 0:02:01]} 35. Bb6 {[%emt 0:00:35]} f4 {[%emt 0:01:49]} 36. Kc2 {[%emt 0:00:40]} Kf7 {[%emt 0:01:09]} 37. Kc3 {[%emt 0:00:34]} g5 {[%emt 0:02:35]} 38. hxg5 {[%emt 0:01:13]} Nxg5 {[%emt 0:00:10]} 39. Rd4 {[%emt 0:00:42]} Ne6 {[%emt 0:01:15]} 40. Rd1 {[%emt 0:00:13]} Kg6 {[%emt 0:01:29]} 41. e4 {[%emt 0:00:57]} Rb7 {[%emt 0:01:08]} 42. Bd4 {[%emt 0:00:42]} dxe4 {[%emt 0:04:47]} 43. fxe4 {[%emt 0:00:08]} Nxd4 {[%emt 0:00:22]} 44. Rxd4 {[%emt 0:00:13]} h5 {[%emt 0:00:27]} 45. Rd1 {[%emt 0:00:54]} h4 {[%emt 0:00:32]} 46. Rh1 {[%emt 0:00:14]} Kg5 {[%emt 0:00:45]} 47. f3 {[%emt 0:00:06]} Rh7 {[%emt 0:02:09]} 48. Rh3 {[%emt 0:00:19]} Rb7 {[%emt 0:01:34]} 49. Rh2 {[%emt 0:00:48]} Rh7 {[%emt 0:00:30]} 50. Rh3 {[%emt 0:00:06]} 1/2-1/2

[Event "CZE-ch FIDE Open 2020"]
[Site "Kouty nad Desnou"]
[Date "2020.03.07"]
[Round "1.6"]
[White "Kubicek, Antonin"]
[Black "Zamecnik, Jan"]
[Result "0-1"]
[ECO "A38"]
[WhiteElo "2113"]
[BlackElo "1850"]
[Annotator "ChessBase"]
[PlyCount "100"]
[EventDate "2020.03.07"]
[EventCountry "CZE"]
[SourceTitle "playchess.com"]
[Source "ChessBase"]
[SourceQuality "1"]
[TimeControl "5400+30"]

1. c4 {[%emt 0:00:00]} Nf6 {[%emt 0:00:00]} 2. Nf3 {[%emt 0:00:00]} g6 {[%emt 0:00:08]} 3. g3 {[%emt 0:00:27]} Bg7 {[%emt 0:00:37]} 4. Bg2 {[%emt 0:00:06]} O-O {[%emt 0:00:26]} 5. O-O {[%emt 0:00:10]} c5 {[%emt 0:02:31]} 6. Nc3 {[%emt 0:00:33]} Nc6 {[%emt 0:00:26]} 7. a3 {[%emt 0:02:04]} d6 {[%emt 0:04:57]} 8. Rb1 {[%emt 0:00:58]} a5 {[%emt 0:02:26]} 9. d3 {[%emt 0:01:33]} Bd7 {[%emt 0:06:28]} 10. Bd2 {[%emt 0:03:36]} Na7 {[%emt 0:12:56]} 11. d4 {[%emt 0:05:14]} Bf5 {[%emt 0:12:04]} 12. Rc1 {[%emt 0:00:14]} Ne4 {[%emt 0:08:46]} 13. Be1 {[%emt 0:07:28]} Rc8 {[%emt 0:23:42]} 14. Nh4 {[%emt 0:06:13]} Nxc3 {[%emt 0:02:38]} 15. Bxc3 {[%emt 0:00:49]} cxd4 {[%emt 0:00:42]} 16. Bxd4 {[%emt 0:03:59]} Bxd4 {[%emt 0:00:32]} 17. Qxd4 {[%emt 0:00:35]} Nc6 {[%emt 0:00:17]} 18. Qd2 {[%emt 0:14:13]} Be6 {[%emt 0:01:52]} 19. Nf3 {[%emt 0:04:44]} f6 {[%emt 0:04:37]} 20. Rfd1 {[%emt 0:04:39]} Qb6 {[%emt 0:04:10]} 21. e3 {[%emt 0:16:55]} a4 {[%emt 0:08:08]} 22. Qc2 {[%emt 0:05:18]} Qa5 {[%emt 0:01:26]} 23. Qe4 {[%emt 0:12:38]} Bf5 {[%emt 0:00:51]} 24. Qf4 {[%emt 0:00:03]} e5 {[%emt 0:00:42]} 25. Qh4 {[%emt 0:00:07]} Rcd8 {[%emt 0:00:34]} 26. Qh6 {[%emt 0:00:54]} Ne7 {[%emt 0:00:23]} 27. Nh4 {[%emt 0:00:25]} Be6 {[%emt 0:00:31]} 28. e4 {[%emt 0:06:02]} Qb6 {[%emt 0:00:21]} 29. Rd2 {[%emt 0:00:46]} Rc8 {[%emt 0:00:24]} 30. Bf1 {[%emt 0:01:00]} Rc5 {[%emt 0:00:32]} 31. Ng2 {[%emt 0:00:04]} Rfc8 {[%emt 0:00:39]} 32. Ne3 {[%emt 0:00:46]} Qc7 {[%emt 0:00:24]} 33. Rcd1 {[%emt 0:00:13]} Rc6 {[%emt 0:00:44]} 34. h4 {[%emt 0:01:05]} Kh8 {[%emt 0:00:18]} 35. h5 {[%emt 0:00:17]} Ng8 {[%emt 0:00:06]} 36. Nd5 {[%emt 0:00:38]} Nxh6 {[%emt 0:00:09]} 37. Nxc7 {[%emt 0:00:03]} R8xc7 {[%emt 0:01:04]} 38. Rxd6 {[%emt 0:00:04]} Rxd6 {[%emt 0:00:24]} 39. Rxd6 {[%emt 0:00:01]} Bxc4 {[%emt 0:00:25]} 40. hxg6 {[%emt 0:00:21]} Bxf1 {[%emt 0:00:36]} 41. Kxf1 {[%emt 0:00:37]} hxg6 {[%emt 0:00:44]} 42. Rxf6 {[%emt 0:00:11]} Kg7 {[%emt 0:00:25]} 43. Rb6 {[%emt 0:00:11]} Nf7 {[%emt 0:00:42]} 44. Rb4 {[%emt 0:00:18]} Nd6 {[%emt 0:00:27]} 45. Rxa4 {[%emt 0:00:34]} b5 {[%emt 0:00:16]} 46. Ra5 {[%emt 0:01:56]} Rc2 {[%emt 0:00:22]} 47. b4 {[%emt 0:00:51]} Rc4 {[%emt 0:00:29]} 48. f3 {[%emt 0:00:49]} Rc3 {[%emt 0:00:46]} 49. Ke2 {[%emt 0:00:58]} Kf6 {[%emt 0:00:19]} 50. Ra6 {[%emt 0:01:39]} Ke7 {[%emt 0:00:17]} 0-1

[Event "CZE-ch FIDE Open 2020"]
[Site "Kouty nad Desnou"]
[Date "2020.03.07"]
[Round "1.7"]
[White "Husa, Daniel"]
[Black "Pycha, Patrik"]
[Result "0-1"]
[ECO "E11"]
[WhiteElo "1814"]
[BlackElo "2024"]
[Annotator "ChessBase"]
[PlyCount "108"]
[EventDate "2020.03.07"]
[EventCountry "CZE"]
[SourceTitle "playchess.com"]
[Source "ChessBase"]
[SourceQuality "1"]
[TimeControl "5400+30"]

1. d4 {[%emt 0:00:58]} Nf6 {[%emt 0:00:00]} 2. c4 {[%emt 0:00:40]} e6 {[%emt 0:00:00]} 3. g3 {[%emt 0:00:05]} Bb4+ {[%emt 0:00:28]} 4. Bd2 {[%emt 0:00:08]} a5 {[%emt 0:00:14]} 5. Nf3 {[%emt 0:00:23]} O-O {[%emt 0:01:15]} 6. Bg2 {[%emt 0:01:45]} d6 {[%emt 0:00:35]} 7. O-O {[%emt 0:00:14]} Nc6 {[%emt 0:05:05]} 8. Qc2 {[%emt 0:07:30]} e5 {[%emt 0:02:11]} 9. e3 {[%emt 0:11:08]} Bg4 {[%emt 0:10:09]} 10. a3 {[%emt 0:04:37]} Bxd2 {[%emt 0:00:08]} 11. Nbxd2 {[%emt 0:01:02]} exd4 {[%emt 0:08:26]} 12. Nxd4 {[%emt 0:02:53]} Nxd4 {[%emt 0:02:29]} 13. exd4 {[%emt 0:00:13]} c6 {[%emt 0:00:46]} 14. Rfe1 {[%emt 0:05:23]} Qd7 {[%emt 0:05:16]} 15. Ne4 {[%emt 0:08:28]} Nxe4 {[%emt 0:00:11]} 16. Bxe4 {[%emt 0:01:10]} f5 {[%emt 0:02:17]} 17. Bg2 {[%emt 0:01:51]} f4 {[%emt 0:01:27]} 18. Be4 {[%emt 0:09:16]} h6 {[%emt 0:04:25]} 19. Rac1 {[%emt 0:04:57]} Qf7 {[%emt 0:03:58]} 20. Qd2 {[%emt 0:07:32]} f3 {[%emt 0:10:42]} 21. Bd3 {[%emt 0:03:28]} Bf5 {[%emt 0:03:00]} 22. Qc2 {[%emt 0:03:59]} Bh3 {[%emt 0:08:25]} 23. Re3 {[%emt 0:03:51]} Qd7 {[%emt 0:15:34]} 24. Rce1 {[%emt 0:01:36]} Rae8 {[%emt 0:01:04]} 25. Qd2 {[%emt 0:01:11]} b6 {[%emt 0:01:09]} 26. c5 {[%emt 0:11:13]} Rxe3 {[%emt 0:05:42]} 27. Rxe3 {[%emt 0:00:17]} dxc5 {[%emt 0:00:57]} 28. dxc5 {[%emt 0:00:32]} Qc7 {[%emt 0:00:44]} 29. cxb6 {[%emt 0:02:15]} Qxb6 {[%emt 0:00:09]} 30. Qc3 {[%emt 0:00:49]} Qa7 {[%emt 0:03:17]} 31. Re1 {[%emt 0:02:58]} c5 {[%emt 0:03:10]} 32. Qc4+ {[%emt 0:02:09]} Kh8 {[%emt 0:01:09]} 33. Qe4 {[%emt 0:00:28]} g5 {[%emt 0:01:19]} 34. Qe5+ {[%emt 0:01:10]} Qg7 {[%emt 0:00:09]} 35. Qxc5 {[%emt 0:00:24]} Rd8 {[%emt 0:00:53]} 36. Re7 {[%emt 0:00:42]} Rxd3 {[%emt 0:00:41]} 37. Re8+ {[%emt 0:00:40]} Kh7 {[%emt 0:00:06]} 38. Qxa5 {[%emt 0:00:31]} Rd1+ {[%emt 0:00:15]} 39. Re1 {[%emt 0:00:03]} Rxe1+ {[%emt 0:00:26]} 40. Qxe1 {[%emt 0:00:01]} Bf5 {[%emt 0:01:08]} 41. b4 {[%emt 0:00:17]} Qd7 {[%emt 0:00:37]} 42. Qc1 {[%emt 0:01:35]} Qd3 {[%emt 0:00:30]} 43. Qc7+ {[%emt 0:00:30]} Kg6 {[%emt 0:00:22]} 44. Qc6+ {[%emt 0:00:19]} Kh5 {[%emt 0:00:36]} 45. g4+ {[%emt 0:00:43]} Kxg4 {[%emt 0:00:14]} 46. Qc1 {[%emt 0:00:33]} Bd7 {[%emt 0:00:40]} 47. Qa1 {[%emt 0:00:30]} Ba4 {[%emt 0:00:14]} 48. b5 {[%emt 0:00:28]} Bxb5 {[%emt 0:00:15]} 49. a4 {[%emt 0:00:08]} Ba6 {[%emt 0:00:18]} 50. a5 {[%emt 0:00:20]} Qc4 {[%emt 0:00:41]} 51. Qd1 {[%emt 0:00:15]} Kh4 {[%emt 0:00:34]} 52. h3 {[%emt 0:00:41]} Kxh3 {[%emt 0:00:14]} 53. Qxf3+ {[%emt 0:00:07]} Kh4 {[%emt 0:00:15]} 54. Kh2 {[%emt 0:00:28]} Qf4+ {[%emt 0:00:17]} 0-1

[Event "CZE-ch FIDE Open 2020"]
[Site "Kouty nad Desnou"]
[Date "2020.03.07"]
[Round "1.8"]
[White "Nguyen, Thai Dai Vinh"]
[Black "Merinsky, Vaclav"]
[Result "0-1"]
[ECO "C45"]
[WhiteElo "2018"]
[BlackElo "1764"]
[Annotator "ChessBase"]
[PlyCount "56"]
[EventDate "2020.03.07"]
[EventCountry "CZE"]
[SourceTitle "playchess.com"]
[Source "ChessBase"]
[SourceQuality "1"]
[TimeControl "5400+30"]

1. e4 {[%emt 0:00:00]} e5 {[%emt 0:00:00]} 2. Nf3 {[%emt 0:00:00]} Nc6 {[%emt 0:00:00]} 3. d4 {[%emt 0:00:00]} exd4 {[%emt 0:00:00]} 4. Nxd4 {[%emt 0:00:00]} Bc5 {[%emt 0:00:08]} 5. Be3 {[%emt 0:00:00]} Qf6 {[%emt 0:00:38]} 6. c3 {[%emt 0:00:00]} Qg6 {[%emt 0:00:30]} 7. Nd2 {[%emt 0:04:32]} Nf6 {[%emt 0:02:57]} 8. f3 {[%emt 0:05:48]} d5 {[%emt 0:06:50]} 9. Qc2 {[%emt 0:21:21]} dxe4 {[%emt 0:09:22]} 10. fxe4 {[%emt 0:01:38]} Bd7 {[%emt 0:07:25]} 11. O-O-O {[%emt 0:07:00]} Ne5 {[%emt 0:04:03]} 12. N2f3 {[%emt 0:11:37]} Neg4 {[%emt 0:10:47]} 13. Bf4 {[%emt 0:03:06]} O-O-O {[%emt 0:02:42]} 14. h3 {[%emt 0:06:09]} Nh5 {[%emt 0:02:40]} 15. Bg5 {[%emt 0:07:20]} f6 {[%emt 0:09:41]} 16. hxg4 {[%emt 0:04:59]} Ng3 {[%emt 0:00:52]} 17. Bd3 {[%emt 0:06:49]} Nxh1 {[%emt 0:07:25]} 18. e5 {[%emt 0:02:45]} Qf7 {[%emt 0:04:47]} 19. e6 {[%emt 0:05:34]} Bxe6 {[%emt 0:00:46]} 20. Bf5 {[%emt 0:03:17]} Bxd4 {[%emt 0:01:45]} 21. Qb3 {[%emt 0:07:30]} Be3+ {[%emt 0:02:48]} 22. Nd2 {[%emt 0:00:42]} Bxd2+ {[%emt 0:04:44]} 23. Bxd2 {[%emt 0:00:47]} Rhe8 {[%emt 0:02:06]} 24. Re1 {[%emt 0:00:30]} Rd6 {[%emt 0:02:31]} 25. Bf4 {[%emt 0:00:29]} Kb8 {[%emt 0:04:56]} 26. Qb5 {[%emt 0:00:33]} Rd5 {[%emt 0:04:13]} 27. Bxc7+ {[%emt 0:00:29]} Kxc7 {[%emt 0:02:29]} 28. Qc4+ {[%emt 0:00:12]} Kb8 {[%emt 0:01:03]} 0-1

[Event "CZE-ch FIDE Open 2020"]
[Site "Kouty nad Desnou"]
[Date "2020.03.07"]
[Round "1.9"]
[White "Dejmal, Ondrej"]
[Black "Tuma, Jan"]
[Result "1-0"]
[ECO "B30"]
[WhiteElo "1757"]
[BlackElo "1993"]
[Annotator "ChessBase"]
[PlyCount "81"]
[EventDate "2020.03.07"]
[EventCountry "CZE"]
[SourceTitle "playchess.com"]
[Source "ChessBase"]
[SourceQuality "1"]
[TimeControl "5400+30"]

1. e4 {[%emt 0:00:00]} c5 {[%emt 0:00:00]} 2. Nf3 {[%emt 0:00:00]} Nc6 {[%emt 0:00:00]} 3. c4 {[%emt 0:00:09]} e5 {[%emt 0:01:17]} 4. Nc3 {[%emt 0:00:55]} g6 {[%emt 0:00:47]} 5. Be2 {[%emt 0:01:19]} Bg7 {[%emt 0:00:23]} 6. O-O {[%emt 0:01:23]} Nge7 {[%emt 0:00:35]} 7. d3 {[%emt 0:02:32]} d6 {[%emt 0:01:37]} 8. Bd2 {[%emt 0:02:25]} O-O {[%emt 0:07:38]} 9. a3 {[%emt 0:02:36]} h6 {[%emt 0:02:01]} 10. Nd5 {[%emt 0:07:21]} f5 {[%emt 0:03:27]} 11. b4 {[%emt 0:03:35]} f4 {[%emt 0:06:57]} 12. b5 {[%emt 0:03:38]} Nd4 {[%emt 0:12:30]} 13. Nxd4 {[%emt 0:10:08]} Nxd5 {[%emt 0:05:15]} 14. cxd5 {[%emt 0:04:39]} exd4 {[%emt 0:00:34]} 15. Bg4 {[%emt 0:03:37]} Be5 {[%emt 0:04:26]} 16. Bxc8 {[%emt 0:04:33]} Qxc8 {[%emt 0:01:57]} 17. f3 {[%emt 0:01:13]} g5 {[%emt 0:07:07]} 18. Rc1 {[%emt 0:04:03]} Qd7 {[%emt 0:01:03]} 19. a4 {[%emt 0:02:50]} Kh8 {[%emt 0:00:56]} 20. Kf2 {[%emt 0:07:26]} Rf6 {[%emt 0:03:43]} 21. h3 {[%emt 0:06:48]} h5 {[%emt 0:01:26]} 22. Rh1 {[%emt 0:02:02]} Rh6 {[%emt 0:01:44]} 23. Ke2 {[%emt 0:02:41]} Kg7 {[%emt 0:02:28]} 24. Qg1 {[%emt 0:05:40]} Rah8 {[%emt 0:06:06]} 25. Qf2 {[%emt 0:08:07]} Kf7 {[%emt 0:07:17]} 26. Rcg1 {[%emt 0:02:54]} Rg6 {[%emt 0:03:55]} 27. Qf1 {[%emt 0:05:27]} Rhg8 {[%emt 0:01:29]} 28. Kd1 {[%emt 0:01:34]} a6 {[%emt 0:00:25]} 29. Ke2 {[%emt 0:02:18]} axb5 {[%emt 0:00:35]} 30. axb5 {[%emt 0:00:12]} Qxb5 {[%emt 0:00:39]} 31. Qa1 {[%emt 0:00:42]} g4 {[%emt 0:04:18]} 32. hxg4 {[%emt 0:01:53]} hxg4 {[%emt 0:00:15]} 33. Rh7+ {[%emt 0:00:35]} Kf6 {[%emt 0:00:28]} 34. Qe1 {[%emt 0:01:06]} gxf3+ {[%emt 0:12:08]} 35. gxf3 {[%emt 0:00:31]} Rg2+ {[%emt 0:00:13]} 36. Rxg2 {[%emt 0:00:00]} Rxg2+ {[%emt 0:00:03]} 37. Kf1 {[%emt 0:00:17]} Rg3 {[%emt 0:00:10]} 38. Qe2 {[%emt 0:01:16]} Kg6 {[%emt 0:00:13]} 39. Rh2 {[%emt 0:00:33]} c4 {[%emt 0:02:27]} 40. dxc4 {[%emt 0:00:28]} Qb1+ {[%emt 0:00:34]} 41. Be1 {[%emt 0:00:02]} 1-0